[Event "*** Titled Tuesday Blitz"]
[Site "Chess.com"]
[Date "2020.11.10"]
[Round "6"]
[White "Oneofmyturns"]
[Black "Azerichess"]
[Result "0-1"]
[WhiteElo "2732"]
[BlackElo "2967"]
[TimeControl "180+1"]
[EndTime "11:07:14 PST"]
[Termination "Azerichess won by resignation"]

1. d4 {[%clk 0:03:00.9]} 1... d5 {[%clk 0:02:59.2]} 2. c4 {[%clk 0:03:01.3]}
2... c5 {[%clk 0:02:58.4]} 3. cxd5 {[%clk 0:02:50.7]} 3... Qxd5 {[%clk
0:02:59.3]} 4. Nf3 {[%clk 0:02:50.7]} 4... cxd4 {[%clk 0:02:59.7]} 5. Nc3 {[%clk
0:02:51.3]} 5... Qa5 {[%clk 0:02:59.3]} 6. Nxd4 {[%clk 0:02:50.1]} 6... Nf6
{[%clk 0:02:59.7]} 7. Nb3 {[%clk 0:02:46.4]} 7... Qc7 {[%clk 0:02:59.3]} 8. g3
{[%clk 0:02:46.7]} 8... e5 {[%clk 0:02:59.4]} 9. Bg2 {[%clk 0:02:46.4]} 9... Bb4
{[%clk 0:03:00]} 10. O-O {[%clk 0:02:45.8]} 10... Bxc3 {[%clk 0:02:59.6]} 11.
bxc3 {[%clk 0:02:45.4]} 11... O-O {[%clk 0:03:00.3]} 12. Bg5 {[%clk 0:02:35.7]}
12... Be6 {[%clk 0:02:55.5]} 13. Bxf6 {[%clk 0:02:29.2]} 13... gxf6 {[%clk
0:02:56.4]} 14. f4 {[%clk 0:02:24.4]} 14... Nd7 {[%clk 0:02:52.1]} 15. Rc1
{[%clk 0:01:58.4]} 15... Rac8 {[%clk 0:02:44.5]} 16. e3 {[%clk 0:01:56.6]} 16...
Qb6 {[%clk 0:02:38.1]} 17. Qf3 {[%clk 0:01:34.9]} 17... Rfd8 {[%clk 0:02:31.5]}
18. Kh1 {[%clk 0:01:30.5]} 18... Nc5 {[%clk 0:02:22.9]} 19. fxe5 {[%clk
0:01:15.5]} 19... fxe5 {[%clk 0:02:22]} 20. Nxc5 {[%clk 0:01:15.5]} 20... Qxc5
{[%clk 0:02:16.1]} 21. Bh3 {[%clk 0:00:44.4]} 21... Qc6 {[%clk 0:01:55.1]} 22.
e4 {[%clk 0:00:42.6]} 22... Bxh3 {[%clk 0:01:54.2]} 23. Qxf7+ {[%clk 0:00:29.9]}
23... Kh8 {[%clk 0:01:53.8]} 0-1

[Event "*** Titled Tuesday Blitz"]
[Site "Chess.com"]
[Date "2020.11.10"]
[Round "6"]
[White "zaur-mammadov"]
[Black "Lenyas66"]
[Result "1-0"]
[WhiteElo "2627"]
[BlackElo "2463"]
[TimeControl "180+1"]
[EndTime "11:07:14 PST"]
[Termination "zaur-mammadov won by checkmate"]

1. e4 {[%clk 0:03:00.9]} 1... e6 {[%clk 0:02:58.3]} 2. d4 {[%clk 0:03:00.4]}
2... d5 {[%clk 0:02:58.1]} 3. e5 {[%clk 0:03:01]} 3... c5 {[%clk 0:02:57.6]} 4.
c3 {[%clk 0:03:01.9]} 4... Nc6 {[%clk 0:02:57.7]} 5. Nf3 {[%clk 0:03:01.5]} 5...
Qb6 {[%clk 0:02:57.7]} 6. Na3 {[%clk 0:03:01.7]} 6... cxd4 {[%clk 0:02:52.7]} 7.
cxd4 {[%clk 0:03:02.6]} 7... Bxa3 {[%clk 0:02:51.6]} 8. bxa3 {[%clk 0:03:02.4]}
8... Nge7 {[%clk 0:02:51]} 9. Bd3 {[%clk 0:03:02.4]} 9... Nf5 {[%clk 0:02:32]}
10. Rb1 {[%clk 0:03:01.2]} 10... Qa5+ {[%clk 0:02:30.3]} 11. Bd2 {[%clk
0:03:01.4]} 11... Qxa3 {[%clk 0:02:28.3]} 12. Rb3 {[%clk 0:03:01.2]} 12... Qe7
{[%clk 0:02:10.9]} 13. O-O {[%clk 0:02:53.9]} 13... O-O {[%clk 0:02:09.9]} 14.
Bg5 {[%clk 0:02:42.9]} 14... Qd7 {[%clk 0:01:58.7]} 15. Bb1 {[%clk 0:02:43.2]}
15... Na5 {[%clk 0:01:37.9]} 16. Rc3 {[%clk 0:02:42.3]} 16... h6 {[%clk
0:01:29.7]} 17. Bc1 {[%clk 0:02:41.1]} 17... Qb5 {[%clk 0:01:18]} 18. Qc2 {[%clk
0:02:38.8]} 18... g6 {[%clk 0:00:45.8]} 19. g4 {[%clk 0:02:36]} 19... Ng7 {[%clk
0:00:45.4]} 20. Bxh6 {[%clk 0:02:35.4]} 20... Bd7 {[%clk 0:00:42.6]} 21. Rc5
{[%clk 0:02:32.4]} 21... Qb6 {[%clk 0:00:36.5]} 22. Qd2 {[%clk 0:02:32.5]} 22...
Nc4 {[%clk 0:00:34.5]} 23. Qf4 {[%clk 0:02:28.7]} 23... Qd8 {[%clk 0:00:23.7]}
24. Bg5 {[%clk 0:02:28.6]} 24... Qb6 {[%clk 0:00:15.5]} 25. Bf6 {[%clk
0:02:28.6]} 25... Ne8 {[%clk 0:00:10.2]} 26. Qh6 {[%clk 0:02:27.6]} 26... Na3
{[%clk 0:00:02.4]} 27. Qh8# {[%clk 0:02:26.6]} 1-0

[Event "*** Titled Tuesday Blitz"]
[Site "Chess.com"]
[Date "2020.11.10"]
[Round "6"]
[White "beto-betun"]
[Black "Chuchofrio1"]
[Result "0-1"]
[WhiteElo "2192"]
[BlackElo "2318"]
[TimeControl "180+1"]
[EndTime "11:07:26 PST"]
[Termination "Chuchofrio1 won by resignation"]

1. d4 {[%clk 0:00:30.8]} 1... d5 {[%clk 0:02:58.1]} 2. Nf3 {[%clk 0:00:31.2]}
2... Nf6 {[%clk 0:02:57.9]} 3. g3 {[%clk 0:00:31.2]} 3... b5 {[%clk 0:02:51.3]}
4. Bg2 {[%clk 0:00:32.1]} 4... Bb7 {[%clk 0:02:50.9]} 5. O-O {[%clk 0:00:33]}
5... e6 {[%clk 0:02:51.1]} 6. b3 {[%clk 0:00:33.5]} 6... Nbd7 {[%clk 0:02:49.1]}
7. Bb2 {[%clk 0:00:33.7]} 7... Be7 {[%clk 0:02:46.3]} 8. Nbd2 {[%clk 0:00:34.3]}
8... a6 {[%clk 0:02:45]} 9. Rc1 {[%clk 0:00:34.6]} 9... O-O {[%clk 0:02:44.2]}
10. Re1 {[%clk 0:00:35.2]} 10... Rc8 {[%clk 0:02:42.5]} 11. Ne5 {[%clk
0:00:34.9]} 11... c5 {[%clk 0:02:41]} 12. Nxd7 {[%clk 0:00:33.8]} 12... Nxd7
{[%clk 0:02:38.6]} 13. dxc5 {[%clk 0:00:32.3]} 13... Nxc5 {[%clk 0:02:38]} 14.
c4 {[%clk 0:00:22.1]} 14... dxc4 {[%clk 0:02:16.5]} 15. bxc4 {[%clk 0:00:23]}
15... Bxg2 {[%clk 0:02:15.9]} 16. Kxg2 {[%clk 0:00:23.8]} 16... Qb6 {[%clk
0:02:12.5]} 17. cxb5 {[%clk 0:00:21.6]} 17... axb5 {[%clk 0:02:08.3]} 18. Bd4
{[%clk 0:00:21.4]} 18... Qb7+ {[%clk 0:02:06.3]} 19. Kg1 {[%clk 0:00:20.6]}
19... Na4 {[%clk 0:02:04.3]} 20. Qb3 {[%clk 0:00:18.5]} 20... Rfd8 {[%clk
0:01:58.4]} 21. Nf3 {[%clk 0:00:17.1]} 21... Nc5 {[%clk 0:01:53.3]} 22. Ba1
{[%clk 0:00:14.6]} 22... Nxb3 {[%clk 0:01:52.7]} 0-1

[Event "*** Titled Tuesday Blitz"]
[Site "Chess.com"]
[Date "2020.11.10"]
[Round "6"]
[White "Yashasd1995"]
[Black "northridgehawk"]
[Result "1-0"]
[WhiteElo "2558"]
[BlackElo "2276"]
[TimeControl "180+1"]
[EndTime "11:07:28 PST"]
[Termination "Yashasd1995 won by resignation"]

1. b3 {[%clk 0:03:00.9]} 1... e5 {[%clk 0:02:58.1]} 2. Bb2 {[%clk 0:03:01.8]}
2... Nc6 {[%clk 0:02:56.8]} 3. e3 {[%clk 0:03:02]} 3... Nf6 {[%clk 0:02:56.8]}
4. Bb5 {[%clk 0:03:00.7]} 4... Bd6 {[%clk 0:02:54]} 5. Na3 {[%clk 0:03:00.8]}
5... Na5 {[%clk 0:02:50.2]} 6. Be2 {[%clk 0:02:59.4]} 6... c6 {[%clk 0:02:48.2]}
7. c4 {[%clk 0:02:58.5]} 7... Qe7 {[%clk 0:02:46.4]} 8. Nc2 {[%clk 0:02:58.9]}
8... c5 {[%clk 0:02:44.1]} 9. d4 {[%clk 0:02:55.6]} 9... exd4 {[%clk 0:02:42.1]}
10. exd4 {[%clk 0:02:55.8]} 10... O-O {[%clk 0:02:40.5]} 11. Nf3 {[%clk
0:02:51.1]} 11... Re8 {[%clk 0:02:40.3]} 12. d5 {[%clk 0:02:48.6]} 12... b6
{[%clk 0:02:32.2]} 13. Ne3 {[%clk 0:02:46.7]} 13... Bf4 {[%clk 0:02:28.1]} 14.
Nf5 {[%clk 0:02:31.3]} 14... Qe4 {[%clk 0:02:20.3]} 15. Ng3 {[%clk 0:02:30.4]}
15... Bxg3 {[%clk 0:02:17]} 16. hxg3 {[%clk 0:02:31.3]} 16... Ba6 {[%clk
0:01:46.2]} 17. Kf1 {[%clk 0:02:16.5]} 17... h5 {[%clk 0:00:34]} 18. Bxf6 {[%clk
0:02:12.8]} 18... gxf6 {[%clk 0:00:34.9]} 19. Rxh5 {[%clk 0:02:12.6]} 19... Qg6
{[%clk 0:00:32.4]} 20. Nh4 {[%clk 0:02:09.1]} 20... Qe4 {[%clk 0:00:26.5]} 21.
Bd3 {[%clk 0:02:04.7]} 21... Qd4 {[%clk 0:00:24.6]} 22. Nf5 {[%clk 0:02:02.9]}
22... Re1+ {[%clk 0:00:16.3]} 23. Kxe1 {[%clk 0:02:00.9]} 1-0

[Event "*** Titled Tuesday Blitz"]
[Site "Chess.com"]
[Date "2020.11.10"]
[Round "6"]
[White "catzapto"]
[Black "chessmachine14"]
[Result "0-1"]
[WhiteElo "2139"]
[BlackElo "2299"]
[TimeControl "180+1"]
[EndTime "11:07:31 PST"]
[Termination "chessmachine14 won by resignation"]

1. e4 {[%clk 0:03:00.9]} 1... c5 {[%clk 0:02:59.7]} 2. Nf3 {[%clk 0:03:00.4]}
2... e6 {[%clk 0:03:00.2]} 3. c3 {[%clk 0:03:00.4]} 3... Nf6 {[%clk 0:02:59.5]}
4. e5 {[%clk 0:03:00.1]} 4... Nd5 {[%clk 0:02:59.7]} 5. d4 {[%clk 0:03:01]} 5...
cxd4 {[%clk 0:03:00]} 6. cxd4 {[%clk 0:03:01.9]} 6... d6 {[%clk 0:03:00.3]} 7.
Nc3 {[%clk 0:03:02.3]} 7... Nxc3 {[%clk 0:02:59.6]} 8. bxc3 {[%clk 0:03:03]}
8... Qc7 {[%clk 0:03:00.4]} 9. Qb3 {[%clk 0:02:58.9]} 9... Nd7 {[%clk
0:02:59.5]} 10. Bf4 {[%clk 0:02:56.7]} 10... b6 {[%clk 0:02:57.3]} 11. Bb5
{[%clk 0:02:44.3]} 11... a6 {[%clk 0:02:54]} 12. exd6 {[%clk 0:02:34.2]} 12...
Bxd6 {[%clk 0:02:53.3]} 13. Bxd6 {[%clk 0:02:34.2]} 13... Qxd6 {[%clk
0:02:53.1]} 14. Bxd7+ {[%clk 0:02:35.1]} 14... Bxd7 {[%clk 0:02:47.5]} 15. Ne5
{[%clk 0:02:35.6]} 15... Bb5 {[%clk 0:02:40.4]} 16. a4 {[%clk 0:02:31]} 16...
Bc6 {[%clk 0:02:31.9]} 17. Nxc6 {[%clk 0:02:29.4]} 17... Qxc6 {[%clk 0:02:31.8]}
18. O-O {[%clk 0:02:29.2]} 18... O-O {[%clk 0:02:31.5]} 19. Rab1 {[%clk
0:02:29.1]} 19... h6 {[%clk 0:02:23.8]} 20. Rfc1 {[%clk 0:02:27.8]} 20... Rfb8
{[%clk 0:02:21.1]} 21. a5 {[%clk 0:02:15.5]} 21... b5 {[%clk 0:02:20.9]} 22. c4
{[%clk 0:02:13.8]} 22... bxc4 {[%clk 0:02:13.9]} 23. Qxb8+ {[%clk 0:02:08.7]}
23... Rxb8 {[%clk 0:02:14.8]} 24. Rxb8+ {[%clk 0:02:09.1]} 24... Kh7 {[%clk
0:02:15.3]} 25. Rb6 {[%clk 0:02:04.9]} 25... Qa4 {[%clk 0:01:48.6]} 26. Rxa6
{[%clk 0:02:02.8]} 26... c3 {[%clk 0:01:49]} 27. g3 {[%clk 0:01:42.5]} 27... c2
{[%clk 0:01:47.5]} 28. Ra7 {[%clk 0:01:25.4]} 28... Qxd4 {[%clk 0:01:47.3]} 29.
Rxc2 {[%clk 0:01:07.6]} 29... Qd1+ {[%clk 0:01:42.5]} 30. Kg2 {[%clk 0:01:05.6]}
30... Qxc2 {[%clk 0:01:43.1]} 31. a6 {[%clk 0:01:06]} 31... Qc6+ {[%clk
0:01:41.3]} 32. Kg1 {[%clk 0:01:03.2]} 32... Qb6 {[%clk 0:01:37.7]} 33. Ra8
{[%clk 0:01:03.1]} 33... Qb1+ {[%clk 0:01:37.8]} 0-1

[Event "*** Titled Tuesday Blitz"]
[Site "Chess.com"]
[Date "2020.11.10"]
[Round "6"]
[White "MarceloPlaya"]
[Black "Make_it_shine060"]
[Result "1-0"]
[WhiteElo "2295"]
[BlackElo "2155"]
[TimeControl "180+1"]
[EndTime "11:07:31 PST"]
[Termination "MarceloPlaya won by resignation"]

1. e4 {[%clk 0:03:00.9]} 1... c5 {[%clk 0:02:59]} 2. Nf3 {[%clk 0:03:00.3]} 2...
d6 {[%clk 0:02:58.9]} 3. d4 {[%clk 0:03:00.3]} 3... cxd4 {[%clk 0:02:58.7]} 4.
Nxd4 {[%clk 0:03:00.3]} 4... Nf6 {[%clk 0:02:58.6]} 5. Nc3 {[%clk 0:03:00.2]}
5... Nc6 {[%clk 0:02:58.4]} 6. Bg5 {[%clk 0:02:59.7]} 6... e6 {[%clk 0:02:57.8]}
7. Qd2 {[%clk 0:02:59.8]} 7... Be7 {[%clk 0:02:55.7]} 8. O-O-O {[%clk
0:02:58.4]} 8... O-O {[%clk 0:02:47.5]} 9. f3 {[%clk 0:02:54.7]} 9... Bd7 {[%clk
0:02:46.5]} 10. h4 {[%clk 0:02:54.1]} 10... h6 {[%clk 0:02:45.6]} 11. Be3 {[%clk
0:02:53.5]} 11... a6 {[%clk 0:02:43.7]} 12. g4 {[%clk 0:02:52.4]} 12... b5
{[%clk 0:02:32.4]} 13. g5 {[%clk 0:02:51.4]} 13... Ne8 {[%clk 0:02:31.9]} 14.
gxh6 {[%clk 0:02:49.4]} 14... g6 {[%clk 0:02:31.8]} 15. h5 {[%clk 0:02:47]}
15... g5 {[%clk 0:02:29.8]} 16. Rg1 {[%clk 0:02:41.6]} 16... f6 {[%clk 0:02:23]}
17. f4 {[%clk 0:02:39]} 17... Nxd4 {[%clk 0:01:59.6]} 18. Bxd4 {[%clk
0:02:25.8]} 18... e5 {[%clk 0:01:55.4]} 19. fxe5 {[%clk 0:02:21.5]} 19... dxe5
{[%clk 0:01:54]} 20. Bxe5 {[%clk 0:02:18.1]} 20... fxe5 {[%clk 0:01:45.4]} 21.
Qxd7 {[%clk 0:02:17.4]} 21... Qb6 {[%clk 0:01:41.1]} 22. Nd5 {[%clk 0:01:59.7]}
22... Qxg1 {[%clk 0:01:31]} 23. Nxe7+ {[%clk 0:01:57.5]} 23... Kh7 {[%clk
0:01:15.3]} 24. Ng6+ {[%clk 0:01:46.2]} 24... Kxh6 {[%clk 0:01:13.5]} 25. Nxf8
{[%clk 0:01:45.6]} 25... Nf6 {[%clk 0:01:10.5]} 26. Qf5 {[%clk 0:01:37.3]} 26...
Kxh5 {[%clk 0:00:55]} 27. Be2+ {[%clk 0:01:29.7]} 1-0

[Event "*** Titled Tuesday Blitz"]
[Site "Chess.com"]
[Date "2020.11.10"]
[Round "6"]
[White "Anton_Demchenko"]
[Black "VladimirPotkin"]
[Result "1/2-1/2"]
[WhiteElo "2838"]
[BlackElo "2705"]
[TimeControl "180+1"]
[EndTime "11:07:33 PST"]
[Termination "Game drawn by repetition"]

1. e4 {[%clk 0:03:00.9]} 1... e5 {[%clk 0:03:00.1]} 2. Nf3 {[%clk 0:02:59.4]}
2... Nc6 {[%clk 0:03:00.8]} 3. Bc4 {[%clk 0:02:59.5]} 3... Nf6 {[%clk
0:03:00.5]} 4. d3 {[%clk 0:03:00.1]} 4... h6 {[%clk 0:03:00.8]} 5. O-O {[%clk
0:02:59]} 5... d6 {[%clk 0:02:59.8]} 6. Re1 {[%clk 0:02:58.9]} 6... g5 {[%clk
0:02:59.6]} 7. d4 {[%clk 0:02:57.4]} 7... g4 {[%clk 0:02:20.7]} 8. dxe5 {[%clk
0:02:56.1]} 8... gxf3 {[%clk 0:02:20.5]} 9. exf6 {[%clk 0:02:55.8]} 9... Ne5
{[%clk 0:01:54.5]} 10. Na3 {[%clk 0:02:24.3]} 10... Qxf6 {[%clk 0:01:50.5]} 11.
g3 {[%clk 0:02:21]} 11... Bh3 {[%clk 0:01:38.1]} 12. Bf4 {[%clk 0:02:07.9]}
12... O-O-O {[%clk 0:01:28]} 13. Qd4 {[%clk 0:02:06.1]} 13... Qxf4 {[%clk
0:01:12.2]} 14. gxf4 {[%clk 0:01:26]} 14... Rg8+ {[%clk 0:01:11.3]} 15. Kh1
{[%clk 0:01:26.5]} 15... Bg2+ {[%clk 0:01:11.5]} 16. Kg1 {[%clk 0:01:27]} 16...
Bh3+ {[%clk 0:01:01.3]} 17. Kh1 {[%clk 0:01:27.3]} 17... Bg2+ {[%clk 0:00:43.4]}
18. Kg1 {[%clk 0:01:27]} 18... Bh3+ {[%clk 0:00:25.1]} 1/2-1/2

[Event "*** Titled Tuesday Blitz"]
[Site "Chess.com"]
[Date "2020.11.10"]
[Round "6"]
[White "Matveev_Vladimir"]
[Black "Paralinch"]
[Result "0-1"]
[WhiteElo "2672"]
[BlackElo "2836"]
[TimeControl "180+1"]
[EndTime "11:07:36 PST"]
[Termination "Paralinch won by checkmate"]

1. d4 {[%clk 0:03:00.9]} 1... d5 {[%clk 0:03:00.5]} 2. c4 {[%clk 0:03:01.3]}
2... c6 {[%clk 0:03:01.1]} 3. Nf3 {[%clk 0:03:01.7]} 3... Nf6 {[%clk 0:03:01.4]}
4. Qc2 {[%clk 0:03:02]} 4... g6 {[%clk 0:03:00.4]} 5. Bf4 {[%clk 0:03:02.1]}
5... Na6 {[%clk 0:02:59.1]} 6. a3 {[%clk 0:03:01.9]} 6... Bf5 {[%clk 0:02:58.1]}
7. Qc1 {[%clk 0:02:54.2]} 7... Bg7 {[%clk 0:02:38.2]} 8. e3 {[%clk 0:02:53.4]}
8... O-O {[%clk 0:02:38.2]} 9. Nc3 {[%clk 0:02:50.5]} 9... c5 {[%clk 0:02:38.1]}
10. cxd5 {[%clk 0:02:44.9]} 10... cxd4 {[%clk 0:02:35]} 11. Nxd4 {[%clk
0:02:42.9]} 11... Nxd5 {[%clk 0:02:34.8]} 12. Nxd5 {[%clk 0:02:41.9]} 12... Qxd5
{[%clk 0:02:34.6]} 13. Bxa6 {[%clk 0:02:42.3]} 13... Qa5+ {[%clk 0:02:30.1]} 14.
Qd2 {[%clk 0:02:35.2]} 14... Qxa6 {[%clk 0:02:30]} 15. Nxf5 {[%clk 0:02:35.2]}
15... gxf5 {[%clk 0:02:30.1]} 16. Qe2 {[%clk 0:02:35.2]} 16... Rfc8 {[%clk
0:02:14.6]} 17. Qxa6 {[%clk 0:02:29.7]} 17... bxa6 {[%clk 0:02:15.5]} 18. O-O
{[%clk 0:02:30]} 18... Bxb2 {[%clk 0:02:13.5]} 19. Ra2 {[%clk 0:02:30]} 19...
Bf6 {[%clk 0:01:51.3]} 20. h3 {[%clk 0:02:24]} 20... Rc4 {[%clk 0:01:49.8]} 21.
Rd1 {[%clk 0:02:15.3]} 21... e5 {[%clk 0:01:34.4]} 22. Bg3 {[%clk 0:01:58.3]}
22... f4 {[%clk 0:01:33.8]} 23. exf4 {[%clk 0:01:59.2]} 23... exf4 {[%clk
0:01:34.7]} 24. Bh2 {[%clk 0:01:59.3]} 24... Rac8 {[%clk 0:01:26.5]} 25. Kf1
{[%clk 0:01:51.4]} 25... a5 {[%clk 0:01:20.7]} 26. Rd3 {[%clk 0:01:37.5]} 26...
a4 {[%clk 0:01:18.8]} 27. Rf3 {[%clk 0:01:37]} 27... Be5 {[%clk 0:01:18.9]} 28.
Ke2 {[%clk 0:01:32.8]} 28... Kg7 {[%clk 0:01:08.9]} 29. Kd3 {[%clk 0:01:28.9]}
29... Kg6 {[%clk 0:01:05]} 30. Re2 {[%clk 0:01:13.8]} 30... Rd4# {[%clk
0:01:04.7]} 0-1

[Event "*** Titled Tuesday Blitz"]
[Site "Chess.com"]
[Date "2020.11.10"]
[Round "6"]
[White "Nikolakis2014"]
[Black "Zq1"]
[Result "0-1"]
[WhiteElo "2752"]
[BlackElo "2585"]
[TimeControl "180+1"]
[EndTime "11:07:39 PST"]
[Termination "Zq1 won by resignation"]

1. Nf3 {[%clk 0:03:00.9]} 1... Nf6 {[%clk 0:02:58.9]} 2. c4 {[%clk 0:02:59.9]}
2... e6 {[%clk 0:02:58.3]} 3. g3 {[%clk 0:02:59.7]} 3... d5 {[%clk 0:02:58.3]}
4. d4 {[%clk 0:02:59.5]} 4... Be7 {[%clk 0:02:57.4]} 5. Bg2 {[%clk 0:02:59.2]}
5... O-O {[%clk 0:02:57.5]} 6. O-O {[%clk 0:02:59]} 6... c6 {[%clk 0:02:57.7]}
7. Qc2 {[%clk 0:02:58.9]} 7... b6 {[%clk 0:02:57.7]} 8. Nbd2 {[%clk 0:02:59]}
8... Na6 {[%clk 0:02:57.7]} 9. a3 {[%clk 0:02:56.6]} 9... Bb7 {[%clk 0:02:57.7]}
10. e4 {[%clk 0:02:50.9]} 10... c5 {[%clk 0:02:57]} 11. exd5 {[%clk 0:02:19.8]}
11... exd5 {[%clk 0:02:55.9]} 12. b3 {[%clk 0:02:18.8]} 12... dxc4 {[%clk
0:02:50.1]} 13. Nxc4 {[%clk 0:02:18.1]} 13... Be4 {[%clk 0:02:27.2]} 14. Qd1
{[%clk 0:02:09.4]} 14... cxd4 {[%clk 0:02:26]} 15. Nxd4 {[%clk 0:02:07.1]} 15...
Bxg2 {[%clk 0:02:25.1]} 16. Kxg2 {[%clk 0:02:06.2]} 16... Qd5+ {[%clk
0:02:23.5]} 17. Kg1 {[%clk 0:01:48.2]} 17... Rfd8 {[%clk 0:02:21.8]} 18. Bb2
{[%clk 0:01:48.2]} 18... Nc5 {[%clk 0:02:17.7]} 19. Ne3 {[%clk 0:01:45]} 19...
Qe4 {[%clk 0:02:07.1]} 20. Nef5 {[%clk 0:01:41.5]} 20... Bf8 {[%clk 0:02:00.1]}
21. Re1 {[%clk 0:01:31.2]} 21... Qb7 {[%clk 0:01:57.3]} 22. Qe2 {[%clk
0:01:24.2]} 22... Re8 {[%clk 0:01:50.5]} 23. Qb5 {[%clk 0:01:16.3]} 23... a6
{[%clk 0:01:43.5]} 24. Qc6 {[%clk 0:01:09]} 24... Qxc6 {[%clk 0:01:41]} 25. Nxc6
{[%clk 0:01:08.9]} 25... Nxb3 {[%clk 0:01:37]} 26. Nh6+ {[%clk 0:00:45.1]} 26...
gxh6 {[%clk 0:01:35.3]} 27. Bxf6 {[%clk 0:00:45]} 27... Nxa1 {[%clk 0:01:28.4]}
0-1

[Event "*** Titled Tuesday Blitz"]
[Site "Chess.com"]
[Date "2020.11.10"]
[Round "6"]
[White "GigaQuparadze"]
[Black "andrzej"]
[Result "1-0"]
[WhiteElo "2750"]
[BlackElo "2388"]
[TimeControl "180+1"]
[EndTime "11:07:41 PST"]
[Termination "GigaQuparadze won by checkmate"]

1. e4 {[%clk 0:03:00.9]} 1... c5 {[%clk 0:02:59.6]} 2. Ne2 {[%clk 0:03:01.2]}
2... e6 {[%clk 0:03:00.2]} 3. d4 {[%clk 0:03:01.3]} 3... cxd4 {[%clk 0:03:00.2]}
4. Nxd4 {[%clk 0:03:02.2]} 4... Nf6 {[%clk 0:03:00.7]} 5. Nc3 {[%clk 0:03:02.2]}
5... d6 {[%clk 0:03:01.3]} 6. g4 {[%clk 0:03:01.5]} 6... h6 {[%clk 0:03:01.8]}
7. h4 {[%clk 0:03:01.5]} 7... Nc6 {[%clk 0:03:01.6]} 8. Be2 {[%clk 0:02:58.9]}
8... Qb6 {[%clk 0:02:55.7]} 9. Nb3 {[%clk 0:02:57.6]} 9... a6 {[%clk 0:02:50.4]}
10. Be3 {[%clk 0:02:57.2]} 10... Qc7 {[%clk 0:02:51]} 11. Qd2 {[%clk 0:02:56.8]}
11... Bd7 {[%clk 0:02:47.1]} 12. O-O-O {[%clk 0:02:56.1]} 12... O-O-O {[%clk
0:02:40.7]} 13. g5 {[%clk 0:02:56]} 13... hxg5 {[%clk 0:02:22.7]} 14. hxg5
{[%clk 0:02:56.9]} 14... Rxh1 {[%clk 0:02:23.1]} 15. Rxh1 {[%clk 0:02:57.4]}
15... Ne8 {[%clk 0:02:23.4]} 16. Na4 {[%clk 0:02:57.3]} 16... Ne5 {[%clk
0:02:05.8]} 17. Nb6+ {[%clk 0:02:35.3]} 17... Kb8 {[%clk 0:02:03.6]} 18. f4
{[%clk 0:02:35.7]} 18... Nc6 {[%clk 0:01:57.9]} 19. Nc4 {[%clk 0:02:23.6]} 19...
d5 {[%clk 0:01:20.2]} 20. Bb6 {[%clk 0:02:19.6]} 20... dxc4 {[%clk 0:01:17.3]}
21. Bxc7+ {[%clk 0:02:19.4]} 21... Nxc7 {[%clk 0:01:18]} 22. Bxc4 {[%clk
0:02:19.4]} 22... Bc8 {[%clk 0:01:00.4]} 23. Qf2 {[%clk 0:02:17.2]} 23... b5
{[%clk 0:00:45.3]} 24. Bd3 {[%clk 0:02:16.6]} 24... Bb7 {[%clk 0:00:40.5]} 25.
Rh8 {[%clk 0:02:14.7]} 25... Nb4 {[%clk 0:00:36.2]} 26. Na5 {[%clk 0:02:11.7]}
26... Rxd3 {[%clk 0:00:05.8]} 27. Rxf8+ {[%clk 0:02:10.2]} 27... Bc8 {[%clk
0:00:06.3]} 28. Qb6+ {[%clk 0:02:09.5]} 28... Ka8 {[%clk 0:00:04.5]} 29. Rxc8#
{[%clk 0:02:09.4]} 1-0

[Event "*** Titled Tuesday Blitz"]
[Site "Chess.com"]
[Date "2020.11.10"]
[Round "6"]
[White "Triumphmate"]
[Black "Radzio1987"]
[Result "0-1"]
[WhiteElo "2377"]
[BlackElo "2770"]
[TimeControl "180+1"]
[EndTime "11:07:42 PST"]
[Termination "Radzio1987 won by resignation"]

1. e4 {[%clk 0:03:00.9]} 1... c6 {[%clk 0:02:59.8]} 2. Nf3 {[%clk 0:03:00.4]}
2... d5 {[%clk 0:03:00.7]} 3. exd5 {[%clk 0:03:01.3]} 3... cxd5 {[%clk
0:03:00.8]} 4. d4 {[%clk 0:03:02.2]} 4... Nc6 {[%clk 0:02:59.5]} 5. Bd3 {[%clk
0:03:03.1]} 5... Bg4 {[%clk 0:02:52.8]} 6. c3 {[%clk 0:03:04]} 6... e6 {[%clk
0:02:49.8]} 7. O-O {[%clk 0:03:03.7]} 7... Bd6 {[%clk 0:02:47.2]} 8. Be3 {[%clk
0:03:03.1]} 8... Nge7 {[%clk 0:02:45.4]} 9. Nbd2 {[%clk 0:02:57.7]} 9... Qc7
{[%clk 0:02:44.6]} 10. Qc2 {[%clk 0:02:56.2]} 10... h6 {[%clk 0:02:41.9]} 11.
Rae1 {[%clk 0:02:54.6]} 11... O-O {[%clk 0:02:39.4]} 12. h3 {[%clk 0:02:51]}
12... Bf5 {[%clk 0:02:37.4]} 13. Qb1 {[%clk 0:02:50]} 13... a6 {[%clk
0:02:33.2]} 14. Re2 {[%clk 0:02:45.9]} 14... b5 {[%clk 0:02:32.6]} 15. Rfe1
{[%clk 0:02:45.6]} 15... Rab8 {[%clk 0:02:29.6]} 16. a3 {[%clk 0:02:42.8]} 16...
a5 {[%clk 0:02:29]} 17. Ne5 {[%clk 0:02:42.9]} 17... Nxe5 {[%clk 0:02:22.9]} 18.
dxe5 {[%clk 0:02:43.8]} 18... Bxe5 {[%clk 0:02:23.2]} 19. Nf3 {[%clk 0:02:38.9]}
19... Bf6 {[%clk 0:02:16.7]} 20. Bd4 {[%clk 0:02:36.7]} 20... Bxd4 {[%clk
0:02:13.6]} 21. Nxd4 {[%clk 0:02:37.6]} 21... Bxd3 {[%clk 0:02:09.3]} 22. Qxd3
{[%clk 0:02:38.5]} 22... b4 {[%clk 0:02:09.6]} 23. axb4 {[%clk 0:02:20.3]} 23...
axb4 {[%clk 0:02:10.5]} 24. Nxe6 {[%clk 0:02:19.2]} 24... fxe6 {[%clk
0:02:09.2]} 25. Rxe6 {[%clk 0:02:20.1]} 25... Rf7 {[%clk 0:02:07.7]} 26. Qd4
{[%clk 0:01:58.3]} 26... bxc3 {[%clk 0:02:04.3]} 27. bxc3 {[%clk 0:01:59.2]}
27... Rbf8 {[%clk 0:01:57.9]} 28. f3 {[%clk 0:01:56.5]} 28... Nf5 {[%clk
0:01:51]} 29. Qxd5 {[%clk 0:01:54]} 29... Qxc3 {[%clk 0:01:50.6]} 30. R6e5
{[%clk 0:01:48]} 30... Kh8 {[%clk 0:01:46]} 31. Kh2 {[%clk 0:01:44.9]} 31... Rf6
{[%clk 0:01:43.9]} 32. R1e4 {[%clk 0:01:27.4]} 32... Qc7 {[%clk 0:01:34]} 33.
Kg1 {[%clk 0:01:20.2]} 33... Nd6 {[%clk 0:01:33.3]} 34. Re1 {[%clk 0:01:13.9]}
34... Qb6+ {[%clk 0:01:32.8]} 35. Kh2 {[%clk 0:01:13.2]} 35... Nf5 {[%clk
0:01:30.8]} 36. R1e4 {[%clk 0:01:07.6]} 36... Qf2 {[%clk 0:01:29.9]} 37. Rg4
{[%clk 0:01:05.5]} 37... Ne3 {[%clk 0:01:28.3]} 0-1